bitfinex/quotes_BTCUSD_20250814
["timestamp","ask_amount","ask_price","bid_price","bid_amount"]
[1755137494313,0.00024506,123170.0,122770.0,0.47730834]
[1755137494459,0.26557003,123190.0,122770.0,0.47730834]
[1755137495847,0.26557003,123240.0,122770.0,0.47730834]
[1755137496079,0.26557003,123230.0,122780.0,0.04005381]
[1755137496393,0.00024506,123180.0,122780.0,0.04005381]
[1755137496643,0.0230172,123180.0,122780.0,0.48885381]
[1755137498275,0.01542649,123180.0,122780.0,0.48885381]
[1755137498539,0.02301728,123180.0,122970.0,0.04086738]
[1755137498754,0.02301728,123180.0,123020.0,0.04013746]
[1755137498993,0.02301728,123180.0,123020.0,0.48893746]
[1755137499222,0.02301728,123180.0,123030.0,0.04003546]
[1755137501695,0.02301728,123180.0,123030.0,0.33460702]
[1755137502403,0.02901728,123180.0,123030.0,0.33560702]
[1755137502844,0.02301728,123180.0,123030.0,0.33460702]
[1755137503273,0.02801728,123180.0,123030.0,0.33460702]
[1755137507730,0.02301728,123180.0,123030.0,0.33460702]
[1755137508128,0.02801728,123180.0,123030.0,0.33560702]
[1755137508756,0.02301728,123180.0,123030.0,0.33460702]
[1755137509172,0.02701728,123180.0,123030.0,0.33460702]
[1755137510351,0.02701606,123180.0,123030.0,0.33460702]
[1755137511500,0.026771,123180.0,123030.0,0.33460702]
[1755137511719,0.02676855,123180.0,123030.0,0.33460702]
[1755137512175,0.02676855,123180.0,123060.0,0.04078499]
[1755137512374,0.29233858,123180.0,123070.0,0.0401419]
[1755137512577,0.29803072,123180.0,123070.0,0.0401419]
[1755137514543,0.29403072,123180.0,123070.0,0.0401419]
[1755137515270,0.30103072,123180.0,123070.0,0.0401419]
[1755137515870,0.29403072,123180.0,123070.0,0.33471346]
[1755137516069,0.30203072,123180.0,123080.0,0.04072811]
[1755137517492,0.29403072,123180.0,123080.0,0.04072811]
[1755137517919,0.30203072,123180.0,123080.0,0.04172811]
[1755137518561,0.30203028,123180.0,123080.0,0.04172811]
[1755137518776,0.03646025,123180.0,123080.0,0.04172811]
[1755137518983,0.03076855,123180.0,123080.0,0.04172811]
[1755137519399,0.03076855,123180.0,123090.0,0.04091782]
[1755137520189,0.03068814,123180.0,123090.0,0.04091782]
[1755137520815,0.02268814,123180.0,123090.0,0.04091782]
[1755137521035,0.03168814,123180.0,123100.0,0.04067619]
[1755137521491,0.0241768,123180.0,123100.0,0.04067619]
[1755137522017,0.0151768,123180.0,123100.0,0.04067619]
[1755137522244,0.0151768,123180.0,123050.0,0.04011825]
[1755137522445,0.0251768,123180.0,123110.0,0.04069802]
[1755137522683,0.0261768,123180.0,123110.0,0.04069802]
[1755137523666,0.0251768,123180.0,123110.0,0.04069802]
[1755137523909,0.0171768,123180.0,123060.0,0.04038538]
[1755137524135,0.0231768,123180.0,123060.0,0.33495694]
[1755137524794,0.0171768,123180.0,123060.0,0.33495694]
[1755137525027,0.0281768,123180.0,123120.0,0.0405228]
[1755137525517,0.0261768,123180.0,123120.0,0.0405228]
[1755137525775,0.28643363,123210.0,123070.0,0.04055399]
[1755137526009,0.007,123180.0,123070.0,0.33512555]
[1755137526664,0.01,123180.0,123070.0,0.33512555]
[1755137527024,0.007,123180.0,123070.0,0.33512555]
[1755137527223,0.26557003,123210.0,123130.0,0.23202879]
[1755137527437,0.71267003,123290.0,123130.0,0.23202879]
[1755137527645,0.012,123180.0,123130.0,0.23202879]
[1755137528058,0.72778365,123270.0,123130.0,0.23202879]
[1755137528275,0.71267003,123260.0,123130.0,0.23202879]
[1755137528489,0.008,123180.0,123130.0,0.23202879]
[1755137528716,0.008,123180.0,123130.0,0.27278093]
[1755137528930,0.28068365,123250.0,123130.0,0.27278093]
[1755137529139,0.004,123210.0,123130.0,0.04075214]
[1755137529368,0.004,123210.0,123130.0,0.04175214]
[1755137529604,0.28068365,123250.0,123140.0,0.04045568]
[1755137530674,0.28068365,123250.0,123130.0,0.04045212]
[1755137530899,0.01,123180.0,123130.0,0.04145212]
[1755137532112,0.28068365,123250.0,123130.0,0.04045212]
[1755137532313,0.29919725,123250.0,123150.0,0.04091488]
[1755137532745,0.30119725,123250.0,123150.0,0.04091488]
[1755137533170,0.29919725,123250.0,123150.0,0.04091488]
[1755137533547,0.30019725,123250.0,123150.0,0.04091488]
[1755137533759,0.28819725,123250.0,123130.0,0.04045212]
[1755137534211,0.01,123180.0,123130.0,0.04145212]
[1755137534616,0.28355891,123250.0,123130.0,0.04045212]
[1755137534817,0.30305335,123250.0,123150.0,0.04191488]
[1755137535383,0.29104901,123250.0,123120.0,0.04001339]
[1755137535671,0.01,123180.0,123140.0,0.04075547]
[1755137537114,0.28803523,123250.0,123140.0,0.04075547]
[1755137537314,0.26557003,123240.0,123110.0,0.04013669]
[1755137537663,0.26557003,123230.0,123150.0,0.04191488]
[1755137537862,0.28803523,123230.0,123150.0,0.04191488]
[1755137538180,0.28803523,123230.0,123120.0,0.04001339]
[1755137538352,0.28803523,123230.0,123150.0,0.04091488]
[1755137538986,0.28803523,123230.0,123130.0,0.04045212]
[1755137539764,0.30003523,123230.0,123150.0,0.001]
[1755137539976,0.30003523,123230.0,123160.0,0.04013966]
[1755137540357,0.30303523,123230.0,123160.0,0.04013966]
[1755137541215,0.28803523,123230.0,123130.0,0.04045212]
[1755137541549,0.29803523,123230.0,123130.0,0.04145212]
[1755137542172,0.28803523,123230.0,123130.0,0.04045212]
[1755137542427,0.3000274,123230.0,123160.0,0.001]
[1755137542594,0.3000274,123230.0,123170.0,0.04095493]
[1755137543038,0.2880274,123230.0,123180.0,0.040218]
[1755137543265,0.3000274,123230.0,123130.0,0.04145212]
[1755137543491,0.28304882,123230.0,123130.0,0.33602368]
[1755137543715,0.01747879,123230.0,123130.0,0.33602368]
[1755137544809,0.26557003,123280.0,123130.0,0.33502368]
[1755137545012,0.28800632,123280.0,123130.0,0.33502368]
[1755137545219,0.013,123230.0,123180.0,0.040218]
[1755137545427,0.02047877,123230.0,123180.0,0.040218]
[1755137545642,0.26557003,123280.0,123140.0,0.04075547]
[1755137545858,0.007,123230.0,123140.0,0.04075547]
[1755137546292,0.01448129,123230.0,123140.0,0.04075547]
[1755137546472,0.00748129,123230.0,123140.0,0.04075547]
[1755137546683,0.01948129,123230.0,123180.0,0.041218]
[1755137546881,0.012,123230.0,123180.0,0.041218]
[1755137547292,0.01948329,123230.0,123180.0,0.041218]
[1755137548059,0.00748329,123230.0,123180.0,0.040218]
[1755137548273,0.00748329,123230.0,123140.0,0.04075547]
[1755137548504,0.01648329,123230.0,123140.0,0.04175547]
[1755137548706,0.01648329,123230.0,123140.0,0.33632703]
[1755137549056,0.00748329,123230.0,123140.0,0.33532703]
[1755137549235,0.00748982,123230.0,123140.0,0.33532703]
[1755137549452,0.01948982,123230.0,123180.0,0.001]
[1755137549767,0.01948982,123230.0,123190.0,0.04094353]
[1755137549949,0.00748982,123230.0,123200.0,0.04075321]
[1755137550155,0.00748982,123230.0,123150.0,0.04091488]
[1755137550357,0.00748982,123230.0,123150.0,0.33548644]
[1755137551425,0.01648982,123230.0,123150.0,0.33548644]
[1755137552106,0.00748982,123230.0,123150.0,0.33548644]
[1755137552283,0.01748982,123230.0,123150.0,0.33648644]
[1755137553319,0.0325194,123230.0,123150.0,0.33648644]
[1755137553945,0.01748982,123230.0,123150.0,0.33648644]
[1755137554164,0.0325194,123230.0,123150.0,0.33648644]
[1755137554379,0.03251935,123230.0,123150.0,0.33648644]
[1755137554731,0.03251935,123230.0,123150.0,0.56851523]
[1755137556618,0.03251935,123230.0,123190.0,0.04094353]
[1755137557393,0.03258396,123230.0,123210.0,0.04019735]
[1755137558232,0.02258396,123230.0,123210.0,0.04019735]
[1755137558525,0.03558396,123230.0,123210.0,0.04019735]
[1755137558956,0.02258396,123230.0,123210.0,0.04019735]
[1755137559398,0.03758396,123230.0,123210.0,0.04119735]
[1755137572375,0.03758396,123230.0,123210.0,0.22989084]
[1755137572603,0.02258396,123230.0,123210.0,0.22889084]
[1755137572989,0.03558396,123230.0,123210.0,0.22989084]
[1755137575482,0.02258396,123230.0,123210.0,0.22889084]
[1755137575687,0.03658396,123230.0,123210.0,0.22989084]
[1755137576524,0.03658396,123230.0,123210.0,0.22683272]
[1755137579522,1e-08,123210.0,123200.0,0.04038637]
[1755137579739,0.014,123230.0,123200.0,0.04038637]
[1755137579937,0.02157935,123230.0,123200.0,0.04038637]
[1755137580401,0.02157935,123230.0,123170.0,0.04034757]
[1755137580955,0.00757935,123230.0,123170.0,0.04034757]
[1755137581394,0.00757935,123230.0,123200.0,0.001]
[1755137581607,0.00757935,123230.0,123210.0,0.04033524]
[1755137582089,0.00757935,123230.0,123170.0,0.04034757]
[1755137582305,0.00757935,123230.0,123170.0,0.04134757]
[1755137582306,0.01757935,123230.0,123170.0,0.04134757]
[1755137582511,0.26557003,123260.0,123170.0,0.04134757]
[1755137582726,0.27315003,123260.0,123190.0,0.04088981]
[1755137585464,0.26557003,123260.0,123190.0,0.04088981]
[1755137586183,0.26557003,123260.0,123190.0,0.22644626]
[1755137586694,0.26557003,123280.0,123190.0,0.22644626]
[1755137587106,0.26557003,123270.0,123190.0,0.22644626]
[1755137587315,0.26557003,123270.0,123200.0,0.18555645]
[1755137587527,0.26557003,123260.0,123210.0,0.04033524]
[1755137589977,0.26557003,123260.0,123230.0,0.14262171]
[1755137590188,0.26557003,123260.0,123230.0,0.13550171]
[1755137590809,0.26555796,123260.0,123230.0,0.13550171]
[1755137591473,0.26555796,123260.0,123220.0,0.04023977]
[1755137592212,0.26555796,123260.0,123190.0,0.04088981]
[1755137592660,0.71265796,123330.0,123190.0,0.04088981]
[1755137592893,0.71265796,123320.0,123190.0,0.04088981]
[1755137593093,0.75287166,123320.0,123180.0,0.23202879]
[1755137593498,0.75855666,123320.0,123180.0,0.23202879]
[1755137593719,0.71265796,123310.0,123180.0,0.23202879]
[1755137593939,0.73540159,123310.0,123180.0,0.23202879]
[1755137594138,0.73540159,123310.0,123140.0,0.04088119]
[1755137594341,0.26555796,123300.0,123140.0,0.04088119]
[1755137594551,0.28830159,123300.0,123140.0,0.04088119]
[1755137595193,0.28830159,123300.0,123130.0,0.04067134]
[1755137595956,0.2882888,123300.0,123130.0,0.04067134]
[1755137600222,0.71265796,123290.0,123130.0,0.04067134]
[1755137600461,0.7353888,123290.0,123130.0,0.04067134]
[1755137606067,0.71265796,123280.0,123130.0,0.04067134]
[1755137606218,0.71265796,123270.0,123130.0,0.04067134]
[1755137606428,0.72780759,123270.0,123130.0,0.04067134]
[1755137608938,0.72780759,123270.0,123100.0,0.04020085]
[1755137609151,0.71265796,123260.0,123100.0,0.42670085]
[1755137610061,0.72778539,123260.0,123100.0,0.42670085]
[1755137611691,0.72778539,123260.0,123110.0,0.04015863]
[1755137611878,0.72778539,123260.0,123110.0,0.04047013]
[1755137613241,0.7277736,123260.0,123110.0,0.04047013]
[1755137614168,0.73533047,123260.0,123110.0,0.04047013]
[1755137615001,0.26555796,123250.0,123110.0,0.48927013]
[1755137615202,0.2806736,123250.0,123110.0,0.48927013]
[1755137616635,0.2806736,123250.0,123120.0,0.04080646]
[1755137621076,0.26555796,123240.0,123120.0,0.48960646]
[1755137621264,0.26555796,123230.0,123120.0,0.48960646]
[1755137621594,0.2806736,123230.0,123120.0,0.48960646]
[1755137624651,0.2806736,123230.0,123130.0,0.04005509]
[1755137625224,0.2806983,123230.0,123130.0,0.04005509]
[1755137626726,0.2806983,123230.0,123130.0,0.48885509]
[1755137628169,0.2806983,123230.0,123140.0,0.04045753]
[1755137629908,0.2806983,123230.0,123130.0,0.48897061]
[1755137632706,0.26555796,123220.0,123110.0,0.04077716]
[1755137632909,0.2806983,123220.0,123110.0,0.04077716]
[1755137637231,0.28071099,123220.0,123110.0,0.04077716]
[1755137638727,0.28071099,123220.0,123110.0,0.48957716]
[1755137641908,0.01515303,123220.0,123060.0,0.0402198]
[1755137646181,0.01516167,123220.0,123140.0,0.04087133]
[1755137646682,0.28904355,123260.0,123140.0,0.04087133]
[1755137646878,4.867e-05,123220.0,123140.0,0.04087133]
[1755137648083,0.28904355,123250.0,123140.0,0.04045568]
[1755137648247,0.2663,123240.0,123140.0,0.04045568]
[1755137648454,0.28146167,123240.0,123140.0,0.04045568]
[1755137651085,0.2663,123230.0,123130.0,0.0435321]
[1755137651289,0.28146167,123230.0,123130.0,0.0435321]
[1755137652503,0.28146167,123230.0,123130.0,0.00344]
[1755137655099,0.28145989,123230.0,123130.0,0.00344]
[1755137655299,0.2663,123220.0,123130.0,0.00344]
[1755137655506,0.2663,123210.0,123130.0,0.00344]
[1755137656466,0.28145588,123210.0,123130.0,0.00344]
[1755137658450,0.2663,123210.0,123130.0,0.00344]
[1755137659254,0.2663,123200.0,123130.0,0.00344]
[1755137662071,0.28144825,123200.0,123130.0,0.00344]
[1755137664185,0.28143462,123200.0,123130.0,0.00344]
[1755137671137,0.7134,123190.0,123130.0,0.00344]
[1755137671284,0.2663,123180.0,123130.0,0.00344]
[1755137671469,0.28143462,123180.0,123130.0,0.00344]
[1755137675314,0.28898134,123180.0,123130.0,0.00344]
[1755137676587,0.28143462,123180.0,123130.0,0.00344]
[1755137677036,0.2663,123170.0,123130.0,0.00344]
[1755137677271,0.28143462,123170.0,123130.0,0.00344]
[1755137677700,0.28143462,123170.0,123130.0,1e-08]
[1755137682947,0.2663,123160.0,123130.0,1e-08]
[1755137683154,0.2663,123150.0,123130.0,1e-08]
[1755137683376,0.28143462,123150.0,123130.0,1e-08]
[1755137688854,0.2663,123140.0,123130.0,1e-08]
[1755137689066,0.28143462,123140.0,123130.0,1e-08]
[1755137690413,0.28143462,123140.0,123030.0,0.04003546]
[1755137690623,0.28143462,123140.0,123030.0,0.48883546]
[1755137692572,0.28143462,123140.0,123030.0,0.04003546]
[1755137694026,0.01513462,123140.0,123030.0,0.04003546]
[1755137697878,0.01513462,123140.0,123030.0,0.48883546]
[1755137701305,0.01513462,123140.0,123030.0,0.04003546]
[1755137703099,0.01518394,123140.0,123030.0,0.04003546]
[1755137706747,0.01518394,123140.0,123040.0,5.0]
[1755137707197,0.01518394,123140.0,123030.0,0.04003546]
[1755137707438,0.01518394,123140.0,123040.0,5.0]
[1755137708160,0.01518394,123140.0,123040.0,5.04091305]
[1755137708410,0.01518394,123140.0,123050.0,5.0]
[1755137708943,0.01518394,123140.0,123030.0,0.04021356]
[1755137709195,0.01518394,123140.0,123040.0,5.5]
[1755137709437,0.01518394,123140.0,123030.0,0.04021356]
[1755137709697,0.01518394,123140.0,123040.0,5.54091305]
[1755137709944,0.01518394,123140.0,123050.0,5.0]
[1755137710304,0.01518394,123140.0,123040.0,0.04091305]
[1755137710525,0.01518394,123140.0,123050.0,5.0]
[1755137712416,0.01518394,123140.0,123040.0,0.04091305]
[1755137712642,0.01518394,123140.0,123050.0,5.5]
[1755137712872,0.01518394,123140.0,123050.0,5.0]
[1755137713269,0.28907131,123180.0,123050.0,5.0]
[1755137713518,0.2663,123170.0,123050.0,5.0]
[1755137713882,0.28148394,123170.0,123050.0,5.0]
[1755137714442,0.28148394,123170.0,123040.0,0.04091305]
[1755137714648,0.28148394,123170.0,123050.0,5.5]
[1755137714906,0.28148394,123170.0,123050.0,5.0]
[1755137715544,0.28148394,123170.0,123100.0,1.0]
[1755137715772,0.28148394,123170.0,123110.0,2.570054]
[1755137715773,0.2663,123160.0,123110.0,2.570054]
[1755137716003,0.28148394,123160.0,123110.0,2.69348]
[1755137716221,0.28148394,123160.0,123110.0,2.691406]
[1755137716440,0.2814758,123160.0,123120.0,1.005927]
[1755137716643,0.2814758,123160.0,123130.0,0.4923]
[1755137716880,0.2663,123150.0,123100.0,1.0]
[1755137717059,0.2663,123140.0,123110.0,2.574925]
[1755137717270,0.2663,123140.0,123100.0,1.0]
[1755137717413,0.2663,123140.0,123110.0,2.579583]
[1755137717625,0.2663,123140.0,123100.0,1.0]
[1755137717849,0.2663,123140.0,123110.0,2.604006]
[1755137718081,0.2663,123140.0,123110.0,2.50237]
[1755137718317,0.2663,123140.0,123120.0,0.902201]
[1755137718522,0.2663,123140.0,123110.0,2.354279]
[1755137720471,0.2663,123140.0,123110.0,2.339271]
[1755137720758,0.2663,123140.0,123110.0,2.37381]
[1755137721042,0.2663,123140.0,123110.0,2.254215]
[1755137721220,0.2663,123140.0,123120.0,0.780239]
[1755137721443,0.2663,123130.0,123110.0,2.297742]
[1755137721626,0.2663,123130.0,123110.0,2.335476]
[1755137721831,0.2663,123130.0,123120.0,0.783381]
[1755137722153,0.2663,123130.0,123110.0,2.271508]
[1755137722364,0.2663,123130.0,123110.0,2.233762]
[1755137722551,0.2663,123130.0,123120.0,0.224704]
[1755137722800,0.2663,123130.0,123110.0,0.5]
[1755137723006,0.2663,123120.0,123110.0,0.232194]
[1755137723213,0.2663,123120.0,123110.0,0.323965]
[1755137723395,0.2663,123120.0,123100.0,1.0]
[1755137723594,0.2663,123120.0,123110.0,0.306754]
[1755137723824,0.2663,123120.0,123100.0,1.0]
[1755137724886,0.28146952,123120.0,123100.0,1.0]
[1755137725478,0.2663,123120.0,123100.0,1.0]
[1755137731972,0.2663,123120.0,123110.0,1.907196]
[1755137732182,0.2663,123120.0,123110.0,0.987165]
[1755137732380,0.2663,123120.0,123110.0,0.98417302]
[1755137732581,0.2663,123120.0,123110.0,2.084905]
[1755137732710,0.2663,123120.0,123110.0,1.834493]
[1755137732936,0.2663,123120.0,123110.0,1.706317]
[1755137733132,0.2663,123120.0,123110.0,0.95756]
[1755137733396,0.4471,123160.0,123110.0,1.063563]
[1755137733706,0.46222815,123160.0,123100.0,1.0]
[1755137733907,0.01512815,123160.0,123110.0,2.197517]
[1755137734202,0.75351807,123190.0,123110.0,3.60087]
[1755137734417,0.2663,123180.0,123120.0,1.90285]
[1755137734638,0.28899176,123180.0,123110.0,2.818231]
[1755137734847,0.28899176,123180.0,123120.0,1.785662]
[1755137735015,0.28899176,123180.0,123110.0,3.363892]
[1755137735158,0.28899176,123180.0,123110.0,3.656812]
[1755137735356,0.28899176,123180.0,123100.0,1.0]
[1755137735563,0.28899176,123180.0,123110.0,3.912361]
[1755137735805,0.28899176,123180.0,123110.0,3.891901]
[1755137735985,0.28898946,123180.0,123120.0,3.08537]
[1755137736183,0.28898946,123180.0,123150.0,1.0]
[1755137736821,0.28142631,123180.0,123150.0,1.0]
[1755137738377,0.01512631,123180.0,123150.0,1.0]
[1755137738511,0.03698766,123210.0,123150.0,1.0]
[1755137738709,0.01512631,123210.0,123150.0,1.0]
[1755137741929,0.2663,123200.0,123150.0,1.0]
[1755137742132,0.28899001,123200.0,123160.0,1.680241]
[1755137742334,0.0075637,123200.0,123170.0,0.938086]
[1755137742462,0.00307,123200.0,123170.0,0.00236]
[1755137742872,0.00307,123200.0,123160.0,0.42413068]
[1755137743077,0.00307,123200.0,123160.0,3.03262566]
[1755137743283,0.00307,123200.0,123160.0,3.079576]
[1755137743542,0.00307,123200.0,123160.0,3.105633]
[1755137743752,0.00307,123200.0,123170.0,2.832714]
[1755137743965,0.00215,123180.0,123150.0,1.0]
[1755137744156,0.00307,123170.0,123150.0,1.0]
[1755137744389,0.00215,123160.0,123150.0,1.0]
[1755137744804,0.00522,123160.0,123150.0,1.0]
[1755137752311,0.00307,123160.0,123150.0,1.0]
[1755137752543,0.00522,123160.0,123150.0,1.0]
[1755137759260,0.00307,123160.0,123150.0,1.0]
[1755137759461,0.4471,123170.0,123150.0,1.0]
[1755137759677,0.45017,123170.0,123150.0,1.0]
[1755137760930,0.4471,123170.0,123150.0,1.0]
[1755137761132,0.4471,123210.0,123150.0,1.0]
[1755137761287,0.00307,123190.0,123150.0,1.0]
[1755137763865,0.00307,123200.0,123150.0,1.0]
[1755137764081,0.47213809,123210.0,123150.0,1.0]
[1755137764082,0.00307,123190.0,123150.0,1.0]
[1755137764407,0.00307,123200.0,123150.0,1.0]
[1755137765845,0.00307,123200.0,123160.0,2.290225]
[1755137766049,0.00307,123200.0,123150.0,1.0]
[1755137766240,0.00307,123200.0,123160.0,1.332445]
[1755137766440,0.00307,123200.0,123150.0,1.0]
[1755137766667,0.00307,123200.0,123160.0,1.335431]
[1755137766851,0.00025666,123200.0,123150.0,1.0]
[1755137767081,0.00025666,123200.0,123160.0,1.803706]
[1755137767284,0.2663,123180.0,123170.0,0.975286]
[1755137767502,0.2663,123180.0,123160.0,1.578347]
[1755137767949,0.26634639,123180.0,123160.0,1.578347]
[1755137768374,0.26634639,123180.0,123160.0,1.728235]
[1755137768585,0.26634639,123180.0,123160.0,2.076541]
[1755137768803,0.26634639,123180.0,123160.0,2.374662]
[1755137769265,0.2663,123180.0,123160.0,2.400172]
[1755137769466,0.00025666,123170.0,123150.0,0.81069377]
[1755137769899,0.00025666,123170.0,123160.0,2.460239]
[1755137770112,0.00025666,123170.0,123160.0,4.187517]
[1755137770323,0.00025666,123170.0,123160.0,2.982554]
[1755137770562,0.00025666,123170.0,123160.0,2.924162]
[1755137770987,0.00025666,123170.0,123160.0,2.958355]
[1755137771189,0.00025666,123170.0,123160.0,2.880506]
[1755137771335,0.00025666,123170.0,123160.0,2.393322]
[1755137771542,0.00025666,123170.0,123160.0,2.302496]
[1755137772152,0.00025666,123170.0,123160.0,4.383486]
[1755137772359,0.00025666,123170.0,123160.0,4.279731]
[1755137772615,0.00025666,123170.0,123160.0,4.795958]
[1755137772744,0.00025666,123170.0,123160.0,4.941113]
[1755137772943,0.00025666,123170.0,123150.0,0.81069377]
[1755137773174,0.00025666,123170.0,123160.0,4.941113]
[1755137774186,0.00025666,123170.0,123160.0,4.807888]
[1755137774441,0.00025666,123170.0,123150.0,0.81069377]
[1755137774670,0.00025666,123170.0,123160.0,4.941113]
[1755137776355,0.00025666,123170.0,123150.0,0.81069377]
[1755137776570,0.00025666,123170.0,123160.0,4.941113]
[1755137776972,0.00025666,123170.0,123150.0,0.81069377]
[1755137777424,0.00025666,123170.0,123160.0,3.041522]
[1755137777635,0.00025666,123170.0,123160.0,3.50103]
[1755137778027,0.00025666,123170.0,123160.0,3.828834]
[1755137778205,0.00025666,123170.0,123150.0,0.81069377]
[1755137778409,0.00025666,123170.0,123160.0,3.845955]
[1755137778869,0.00025666,123170.0,123160.0,3.859148]
[1755137778987,0.00025666,123170.0,123160.0,3.304423]
[1755137779187,0.00025666,123170.0,123160.0,3.917056]
[1755137779402,0.00025666,123170.0,123160.0,4.037715]
[1755137779642,0.00025666,123170.0,123160.0,3.923114]
[1755137779851,0.00025666,123170.0,123160.0,3.170577]
[1755137780028,0.00011666,123200.0,123160.0,3.787364]
[1755137780225,0.00011666,123200.0,123170.0,2.516077]
[1755137780462,0.00011666,123200.0,123170.0,2.475625]
[1755137780669,0.00011666,123200.0,123180.0,2.504118]
[1755137781092,0.00011666,123200.0,123190.0,0.00212]
[1755137781291,0.2663,123240.0,123200.0,0.5]
[1755137781492,0.2663,123230.0,123200.0,0.32192]
[1755137781704,0.00207,123210.0,123190.0,1.779532]
[1755137781907,0.00207,123210.0,123200.0,0.00212]
[1755137782135,0.00529,123210.0,123200.0,1.142846]
[1755137782271,0.00529,123210.0,123200.0,2.624021]
[1755137782477,0.00529,123210.0,123200.0,2.875904]
[1755137783053,0.4471,123250.0,123200.0,2.875904]
[1755137783272,0.00322,123220.0,123200.0,0.00212]
[1755137783475,0.00322,123220.0,123210.0,1.50286]
[1755137783684,0.00529,123220.0,123210.0,0.751801]
[1755137783875,0.00529,123220.0,123210.0,0.208647]
[1755137784105,0.00529,123220.0,123190.0,0.0031]
[1755137784309,0.00529,123220.0,123200.0,1.434733]
[1755137784585,0.00529,123220.0,123210.0,0.236363]
[1755137784782,0.00529,123220.0,123200.0,1.703646]
[1755137784999,0.00529,123220.0,123200.0,1.814863]
[1755137785145,0.00529,123220.0,123190.0,0.0031]
[1755137785353,0.00529,123220.0,123200.0,1.119013]
[1755137785741,0.0051901,123220.0,123200.0,2.63226]
[1755137785921,0.0051901,123220.0,123210.0,0.795546]
[1755137786116,0.0051901,123220.0,123200.0,2.577694]
[1755137786319,0.0051901,123220.0,123210.0,0.649562]
[1755137786518,0.0051901,123220.0,123200.0,1.299457]
[1755137786681,0.0051901,123220.0,123190.0,0.0031]
[1755137786889,0.0051901,123220.0,123200.0,1.784113]
[1755137787103,0.2663,123210.0,123200.0,1.801479]
[1755137787323,0.2663,123210.0,123200.0,1.781443]
[1755137787728,0.2663,123210.0,123200.0,2.211287]
[1755137787905,0.2663,123210.0,123200.0,2.079195]
[1755137788107,0.2663,123210.0,123200.0,2.136295]
[1755137788312,0.2663,123210.0,123200.0,2.079195]
[1755137788513,0.2663,123210.0,123200.0,1.662715]
[1755137789158,0.2663,123210.0,123200.0,2.212994]
[1755137789359,0.2663,123210.0,123200.0,2.256803]
[1755137789574,0.2663,123210.0,123200.0,2.273617]
[1755137789784,0.2663,123210.0,123200.0,2.250617]
[1755137790072,0.2663,123210.0,123200.0,0.00212]
[1755137790300,0.2663,123210.0,123200.0,2.113058]
[1755137790523,0.2663,123210.0,123200.0,1.922554]
[1755137790696,0.2663,123210.0,123200.0,2.167131]
[1755137790899,0.2663,123210.0,123200.0,2.141091]
[1755137791133,0.2663,123210.0,123200.0,0.00212]
[1755137791265,0.2663,123210.0,123200.0,1.607839]
[1755137791671,0.2663,123210.0,123200.0,1.502104]
[1755137792045,0.2663,123210.0,123200.0,0.761685]
[1755137792453,0.2663,123210.0,123200.0,1.223346]
[1755137792644,0.2663,123210.0,123200.0,0.00212]
[1755137792847,0.2663,123210.0,123200.0,1.745127]
[1755137793056,0.2663,123210.0,123200.0,1.157885]
[1755137793257,0.2663,123210.0,123200.0,0.00212]
[1755137793486,0.26952,123210.0,123200.0,1.578124]
[1755137793692,0.26952,123210.0,123200.0,1.817831]
[1755137793884,0.26952,123210.0,123200.0,0.00212]
[1755137794084,0.26952,123210.0,123200.0,1.829811]
[1755137794356,0.26952,123210.0,123200.0,1.796751]
[1755137794590,0.26952,123210.0,123200.0,2.099979]
[1755137794794,0.26952,123210.0,123200.0,1.816558]
[1755137795000,0.26952,123210.0,123200.0,1.792251]
[1755137795203,0.26952,123210.0,123200.0,1.857221]
[1755137795414,0.26952,123210.0,123200.0,2.358215]
[1755137795638,0.26956929,123210.0,123200.0,2.530124]
[1755137795851,0.26956929,123210.0,123200.0,2.209419]
[1755137796035,0.26634929,123210.0,123200.0,1.842883]
[1755137796235,0.26634929,123210.0,123200.0,3.479715]
[1755137796448,0.26634929,123210.0,123200.0,3.86426]
[1755137796649,0.2663,123210.0,123200.0,4.01590971]
[1755137796861,0.2663,123210.0,123200.0,4.04116771]
[1755137797073,0.003,123230.0,123200.0,4.21517971]
[1755137797282,0.2693,123240.0,123210.0,3.571354]
[1755137797456,0.2693,123240.0,123210.0,3.636327]
[1755137797656,0.2693,123240.0,123210.0,0.00295]
[1755137797865,0.2693,123240.0,123220.0,2.573214]
[1755137798066,0.2663,123240.0,123210.0,0.00295]
[1755137798274,0.2663,123240.0,123220.0,2.069294]
[1755137798479,0.2663,123240.0,123220.0,0.00295]
[1755137798669,0.00511,123230.0,123160.0,0.3472138]
[1755137798882,0.00511,123230.0,123160.0,4.788327]
[1755137800400,0.00511,123230.0,123220.0,0.00208]
[1755137800613,0.2693,123240.0,123220.0,2.773576]
[1755137800820,0.2693,123240.0,123220.0,0.00208]
[1755137801023,0.00511,123230.0,123220.0,0.00208]
[1755137801167,0.00511,123230.0,123220.0,1.13834]
[1755137801368,0.00511,123230.0,123210.0,2.461968]
[1755137801606,0.00511,123230.0,123200.0,0.00295]
[1755137801813,0.00511,123230.0,123210.0,2.484328]
[1755137802073,0.00511,123230.0,123210.0,2.448451]
[1755137802218,0.00511,123230.0,123220.0,1.294587]
[1755137802416,0.00511,123230.0,123210.0,2.448354]
[1755137802616,0.00511,123230.0,123200.0,0.00295]
[1755137802836,0.00511,123230.0,123210.0,2.487368]
[1755137803243,0.00511,123230.0,123200.0,0.00295]
[1755137803415,0.00511,123230.0,123210.0,2.44143]
[1755137803626,0.00511,123230.0,123200.0,0.00295]
[1755137803813,0.00511,123230.0,123210.0,2.411198]
[1755137804021,0.00511,123230.0,123200.0,0.00295]
[1755137804223,0.00511,123230.0,123210.0,2.455797]
[1755137804441,0.00511,123230.0,123210.0,2.408837]
[1755137804599,0.00511,123230.0,123210.0,2.402297]
[1755137805001,0.00511,123230.0,123200.0,0.00295]
[1755137805300,0.00511,123230.0,123150.0,0.82253177]
[1755137805501,0.003,123220.0,123160.0,4.788327]
[1755137805745,0.003,123220.0,123210.0,0.0004]
[1755137805941,0.003,123220.0,123210.0,2.361984]
[1755137806151,0.00511,123220.0,123150.0,0.82253177]
[1755137806457,0.00511,123220.0,123160.0,4.788327]
[1755137806665,0.00211,123220.0,123160.0,4.788327]